Cogmind - Beta 14 @@@ ROGUE MODE // 2024.10.08 @ 11:08:27 Player: Minty Result: Destroyed by 8R-AWN with 8R-AWN's Boregun Performance ------------- Evolutions (1) 500 Regions Visited (5) 1000 Robots Destroyed (74) 370 Value Destroyed (1841) 1841 Prototype IDs (28) 560 Alien Tech Used (0) 0 Bonus (427) 427 TOTAL SCORE: 4698 Bonus ------- High Alert Combat Kills 158 Follower Combat Kills 14 Aligned with FarCom 300 Friendly Fire -45 Cogmind --------- Core Integrity 0/400 Matter 218/300 Energy 99/100 System Corruption 6% Temperature Cool (0) Movement Core (1700) Ox33 Location -9/Exiles Parts ------- > --- POWER (1) -------- (None) > --- PROPULSION (2) --- (None) > --- UTILITY (2) ------ High-capacity Storage Unit > --- WEAPON (4) ------- AWS/Autocannon > --- INVENTORY (20) --- Small Storage Unit High-capacity Matter Pod (200) Hacking Suite Hacking Suite Tractor Beam Field Recycling Unit (0) Mini Grenade Launcher Field Lobotomy Kit (5) Deploy-a-Sentry Peak State ------------ > --- POWER ------------ (None) > --- PROPULSION ------- (None) > --- UTILITY ---------- High-capacity Storage Unit > --- WEAPON ----------- AWS/Autocannon > --- INVENTORY -------- Small Storage Unit High-capacity Matter Pod Hacking Suite Hacking Suite Tractor Beam Field Recycling Unit Mini Grenade Launcher Field Lobotomy Kit Deploy-a-Sentry Deploy-a-Sentry [Rating: 34] Favorites ----------- Power Light Ion Engine Engine Light Ion Engine Propulsion Wheel Treads Light Treads Leg Aluminum Leg Wheel Wheel Utility Small Storage Unit Device Experimental Sensor Array Storage Small Storage Unit Processor Signal Interpreter Protection Improved Light Armor Plating Weapon Heavy Assault Rifle Energy Gun EM Pulse Gun Ballistic Gun Heavy Assault Rifle Ballistic Cannon AWS/Autocannon Launcher Grenade Launcher Build | -11 -10 -10 -9 -9 -9 ------- Run | Yrd Mat Min Mat Min Exi Slots Evolved 2 | . . . 2 . . Power . | . . . . . . Propulsion . | . . . . . . Utility . | . . . . . . Weapon 2 | . . . 2 . . Parts Attached 37 | . 9 3 16 6 3 Power 4 | . 1 1 1 1 . Engine 4 | . 1 1 1 1 . Core . | . . . . . . Reactor . | . . . . . . Propulsion 9 | . 4 1 1 3 . Treads 2 | . 2 . . . . Leg . | . . . . . . Wheel 7 | . 2 1 1 3 . Hover . | . . . . . . Flight . | . . . . . . Utility 5 | . 1 . 1 2 1 Device 1 | . . . . 1 . Storage 1 | . . . . . 1 Processor 1 | . 1 . . . . Hackware . | . . . . . . Protection 2 | . . . 1 1 . Artifact . | . . . . . . Weapon 19 | . 3 1 13 . 2 Energy Gun 3 | . 1 1 1 . . Energy Cannon . | . . . . . . Ballistic Gun 9 | . 1 . 8 . . Ballistic Cannon 1 | . . . . . 1 Launcher 6 | . 1 . 4 . 1 Special Weapon . | . . . . . . Impact Weapon . | . . . . . . Slashing Weapon . | . . . . . . Piercing Weapon . | . . . . . . Special Melee Weapon . | . . . . . . Unidentified Prototypes 1 | . . . . 1 . Parts Lost 14 | . 2 . 3 1 8 Power 2 | . . . . 1 1 Propulsion 2 | . . . . . 2 Utility 1 | . . . . . 1 Weapon 9 | . 2 . 3 . 4 Highest Loss Streak 8 | . 2 . 2 1 8 To Critical Strikes 2 | . . . . . 2 Average Slot Usage (%) 98 | . 97 100 98 100 95 Engine 12 | . 14 14 11 11 10 Treads 5 | . 17 . . . . Leg 2 | . 8 . . . . Wheel 16 | . . 28 22 22 21 Storage 12 | . 14 14 11 11 11 Processor 6 | . 12 14 1 . . Protection 5 | . . . 9 10 10 Energy Gun 3 | . 3 11 2 . . Ballistic Gun 26 | . 13 14 29 44 41 Launcher 6 | . 10 2 10 . . Peak Build Rating 34 | 6 7 7 18 24 34 Average Rating 12 | 6 6 7 13 18 21 On Entrance 10 | 6 6 7 7 18 19 Naked Turns . | . . . . . . Heaviest Build 100 | 12 15 15 23 23 100 Greatest Support 40 | 20 40 20 26 28 28 Greatest Overweight (x) 33 | . 4 . 1 . 33 Average Overweight (x) . | . . . . . 1 Largest Inventory Capacity 20 | 8 8 8 8 8 20 Average Capacity 8 | 8 8 8 8 8 14 Most Carried 15 | 6 8 8 8 8 15 Average Carried 8 | 6 7 7 7 8 11 Final Capacity 20 | 8 8 8 8 8 20 Final Carried 9 | 6 7 8 8 8 9 Class Distribution -------------------- 44% | Mutant 39% | Tank 5% | Scavenger-Tank 4% | Scavenger-Bomber 3% | Gunner Dominant Class ---------------- Mutant | -10/Materials Mutant | -10/Mines Tank | -9/Materials Tank | -9/Mines Tank | -9/Exiles Resources | -11 -10 -10 -9 -9 -9 ----------- Run | Yrd Mat Min Mat Min Exi Matter Collected 1639 | 200 354 97 840 148 . Remotely . | . . . . . . Salvage Created 2263 | . 538 294 1147 274 10 Parts 151 | . 41 20 74 16 . Haulers Intercepted 5 | . 2 . 3 . . Recyclers Shooed 1 | . 1 . . . . Parts Field Recycled . | . . . . . . Retrieved Matter . | . . . . . . Parts Self-Destructed . | . . . . . . Prevented . | . . . . . . Kills | -11 -10 -10 -9 -9 -9 ------- Run | Yrd Mat Min Mat Min Exi Combat Hostiles Destroyed 48 | . 13 9 23 2 1 Guns 28 | . 4 3 19 2 . AOE 20 | . 9 6 4 . 1 Classes Destroyed 13 | . 9 . 3 . 1 Worker 5 | . 2 1 1 1 . Builder 5 | . 3 1 . 1 . Tunneler 2 | . 1 1 . . . Hauler 5 | . 2 . 3 . . Recycler 3 | . . . 1 2 . Mechanic 1 | . 1 . . . . Operator 3 | . 1 . 2 . . Watcher 3 | . 3 . . . . Swarmer 9 | . 3 3 3 . . Grunt 30 | . 10 6 12 2 . Brawler 2 | . . . 2 . . Sentry 6 | . . . 6 . . Assembled 1 | . . . . . 1 Best Kill Streak 19 | . 19 6 7 2 1 Combat Bots Only 8 | . 8 4 5 2 1 Max Kills in Single Turn 4 | . 3 3 4 2 1 Gunslinging . | . . . . . . Exploded 2 | . 2 2 2 . 1 Melee . | . . . . . . Uniques/NPCs Destroyed . | . . . . . . Combat | -11 -10 -10 -9 -9 -9 -------- Run | Yrd Mat Min Mat Min Exi Hostile Shots Fired 233 | . 52 35 67 7 72 Missed 70 | . 16 10 22 4 18 Damage Taken 2491 | . 485 330 590 64 1022 Core 564 | . 69 89 109 34 263 Absorbed by Shields . | . . . . . . Core Remaining (%) 68 | 100 . 36 . . . Volleys Fired 124 | . 41 16 53 9 5 Largest 4 | . 2 2 4 4 4 Hottest 106 | . 80 60 106 92 99 Shots Fired 308 | . 62 32 158 36 20 Gun 279 | . 45 26 154 36 18 Cannon . | . . . . . . Launcher 29 | . 17 6 4 . 2 Special . | . . . . . . Kinetic 243 | . 28 16 145 36 18 Thermal . | . . . . . . Explosive 29 | . 17 6 4 . 2 Electromagnetic 36 | . 17 10 9 . . Robot Hit Streak 13 | . 9 11 12 8 13 Robot Miss Streak 6 | . 5 3 6 2 3 Penetration Max . | . . . . . . Secondary Targets 3 | . . . 3 . . Max Gunslinging Chain 1 | . . . 1 . . Shots Hit Robots 182 | . 35 20 93 20 14 Core Hits 124 | . 45 14 52 8 5 Critical Kills . | . . . . . . Critical Parts Destroyed . | . . . . . . Critical Strikes 1 | . . . 1 . . Corrupt 1 | . . . 1 . . Melee Attacks . | . . . . . . Impact . | . . . . . . Slashing . | . . . . . . Piercing . | . . . . . . Sneak Attacks . | . . . . . . Combat Hostiles . | . . . . . . Follow-up Attacks . | . . . . . . Damage Inflicted 4676 | . 1457 820 1789 325 285 Guns 2545 | . 362 227 1437 325 194 Cannons . | . . . . . . Explosions 2118 | . 1090 593 344 . 91 Melee . | . . . . . . Ramming 13 | . 5 . 8 . . Kinetic 2214 | . 185 137 1373 325 194 Thermal 192 | . . 192 . . . Explosive 1926 | . 1090 401 344 . 91 Electromagnetic 331 | . 177 90 64 . . Impact . | . . . . . . Slashing . | . . . . . . Piercing . | . . . . . . Highest Corruption 6 | . . 1 . . 6 Average Corruption 1 | . . 1 . . 5 Corruption Purged . | . . . . . . Corruption Blocked . | . . . . . . Effects 2 | . . 1 . . 1 Matter Fused 1 | . . 1 . . . Parts Rejected 1 | . . . . . 1 Overload Shots . | . . . . . . Overflow Damage 34 | . 8 4 22 . . Projectiles . | . . . . . . Explosions 34 | . 8 4 22 . . Melee . | . . . . . . Knockbacks . | . . . . . . Impact . | . . . . . . Kinetic . | . . . . . . Secondary . | . . . . . . Self-Inflicted Damage 110 | . 31 49 3 . 27 Shots 6 | . 3 2 . . 1 Rammed 3 | . 1 . 2 . . Targets Rammed 3 | . 1 . 2 . . Kicked . | . . . . . . Crushed . | . . . . . . Highest Temperature 147 | . 123 31 147 117 60 Average Temperature 44 | . 58 9 44 41 28 Received Heat Transfer 588 | . 237 102 216 33 . Siege Activations . | . . . . . . Robots Corrupted . | . . . . . . Combat Hostiles . | . . . . . . Parts Fried . | . . . . . . Impact Corruptions . | . . . . . . Robots Melted . | . . . . . . Combat Hostiles . | . . . . . . Parts Melted . | . . . . . . Heat Transferred 150 | . . 150 . . . Parts Sabotaged . | . . . . . . Parts Stolen . | . . . . . . Parts Stripped . | . . . . . . Power Chain Reactions 2 | . . 2 . . . Alert | -11 -10 -10 -9 -9 -9 ------- Run | Yrd Mat Min Mat Min Exi Peak Influence 704 | . 487 521 704 385 . Initial 269 | . . 138 202 269 . Average 365 | . 294 423 442 312 . Maximum Alert Level 3 | . 2 2 3 1 . Low Security (%) 13 | 100 24 1 12 . . Level 1 42 | . 48 18 20 100 . Level 2 43 | . 27 79 65 . . Level 3 . | . . . 1 . . Level 4 . | . . . . . . Level 5 . | . . . . . . High Security . | . . . . . . Max Security . | . . . . . . Squads Dispatched 6 | . 2 . 4 . . Investigation 4 | . 2 . 2 . . Extermination . | . . . . . . Reinforcement 2 | . . . 2 . . Assault . | . . . . . . Garrison . | . . . . . . Intercept . | . . . . . . Searches Triggered . | . . . . . . Construction Impeded . | . . . . . . Haulers Reinforced . | . . . . . . Active Scanning Responses . | . . . . . . Cargo Convoy Interrupts . | . . . . . . Stealth | -11 -10 -10 -9 -9 -9 --------- Run | Yrd Mat Min Mat Min Exi Distress Signals 4 | . 1 . 3 . . Communications Jammed . | . . . . . . Distress Signals . | . . . . . . Times Spotted 68 | . 18 9 30 3 8 Peak Tracking Total 9 | . 5 4 4 2 9 Tactical Retreats . | . . . . . . Traps | -11 -10 -10 -9 -9 -9 ------- Run | Yrd Mat Min Mat Min Exi Traps Triggered . | . . . . . . Indirectly . | . . . . . . Trap Hack Attempts . | . . . . . . Triggered . | . . . . . . Disarmed . | . . . . . . Reprogrammed 5 | . 5 . . . . Reused . | . . . . . . Traps Extracted . | . . . . . . Installed . | . . . . . . Triggered . | . . . . . . Machines | -11 -10 -10 -9 -9 -9 ---------- Run | Yrd Mat Min Mat Min Exi Machines Disabled 9 | . . 6 1 . 2 Max in Single Turn 4 | . . 4 1 . 1 Machines Repaired . | . . . . . . Machines Dismantled . | . . . . . . Machines Sabotaged 1 | . . . 1 . . Overloaded Fab Kills . | . . . . . . Hacking | -11 -10 -10 -9 -9 -9 --------- Run | Yrd Mat Min Mat Min Exi Machines Accessed 13 | . 4 1 7 . 1 Terminals 11 | . 4 1 6 . . Fabricators . | . . . . . . Repair Stations . | . . . . . . Recycling Units 1 | . . . 1 . . Scanalyzers . | . . . . . . Garrison Access . | . . . . . . Total Hacks 44 | . 13 4 26 . 1 Successful 27 | . 7 2 17 . 1 Failed 16 | . 5 2 9 . . Catastrophic 3 | . 1 . 2 . . Database Lockouts 1 | . 1 . . . . Manual 30 | . 7 7 15 . 1 Terminals 40 | . 13 4 23 . . Fabricators . | . . . . . . Repair Stations . | . . . . . . Recycling Units 3 | . . . 3 . . Scanalyzers . | . . . . . . Garrison Access . | . . . . . . Terminal Hacks 17 | . 6 2 8 . 1 Robot Analysis 2 | . 1 1 . . . Prototype ID Bank 2 | . 2 . . . . Terminal Index 1 | . . . 1 . . Alert Level 5 | . 1 . 4 . . Unreport Threat 1 | . . . 1 . . Locate Traps 3 | . 1 . 2 . . Reprogram Traps 1 | . 1 . . . . Dispatch Records 1 | . . 1 . . . Derelict Proto ID Bank 1 | . . . . . 1 Fabricator Hacks . | . . . . . . Repair Station Hacks . | . . . . . . Recycling Unit Hacks 1 | . . . 1 . . Report Inventory 1 | . . . 1 . . Scanalyzer . | . . . . . . Garrison Access Hacks . | . . . . . . Unauthorized Hacks 9 | . 1 . 8 . . Terminals 8 | . 1 . 7 . . Botnet 4 | . 1 . 3 . . Skim 3 | . . . 3 . . Sabotage 1 | . . . 1 . . Fabricators . | . . . . . . Repair Stations . | . . . . . . Recycling Units 1 | . . . 1 . . Tunnel 1 | . . . 1 . . Scanalyzers . | . . . . . . Garrison Access . | . . . . . . Data Cores Recovered 1 | . . . 1 . . Used 1 | . . . 1 . . Hacking Detections 10 | . 4 1 5 . . Full Trace Events 5 | . 3 1 1 . . Feedback Events 1 | . . 1 . . . Corruption 1 | . . 1 . . . Feedback Blocked . | . . . . . . Robot Schematics Acquired . | . . . . . . Robots Built . | . . . . . . Authchips . | . . . . . . Time . | . . . . . . Total Robot Build Rating . | . . . . . . Part Schematics Acquired . | . . . . . . Parts Built . | . . . . . . Authchips . | . . . . . . Time . | . . . . . . Total Part Build Rating . | . . . . . . Parts Repaired . | . . . . . . Time . | . . . . . . Parts Recycled . | . . . . . . Recycled Matter . | . . . . . . Retrieved Matter . | . . . . . . Retrieved Components . | . . . . . . Parts Scanalyzed . | . . . . . . Part Schematics Acquired . | . . . . . . Parts Damaged . | . . . . . . Bothacking | -11 -10 -10 -9 -9 -9 ------------ Run | Yrd Mat Min Mat Min Exi Used RIF Installer . | . . . . . . Robots Hacked . | . . . . . . Non-combat . | . . . . . . Combat . | . . . . . . Robot Hacks Applied . | . . . . . . Relay Couplers Released . | . . . . . . Fabnet Peak Effective % . | . . . . . . Robots Rewired . | . . . . . . Allies Hacked . | . . . . . . Hacks Repelled . | . . . . . . Allies | -11 -10 -10 -9 -9 -9 -------- Run | Yrd Mat Min Mat Min Exi Total Allies 1 | . . . . 1 . Largest Group 1 | . . . . 1 1 Highest-Rated Group 31 | . . . . 31 31 Highest-Rated Ally 31 | . . . . 31 31 Total Orders . | . . . . . . Ally Attacks 15 | . . . . 8 7 Total Damage 456 | . . . . 102 354 Kills 6 | . . . . 2 4 Allies Corrupted . | . . . . . . Allies Melted . | . . . . . . Turrets Deployed 2 | . . . . . 2 Intel | -11 -10 -10 -9 -9 -9 ------- Run | Yrd Mat Min Mat Min Exi Robot Analysis Total 2 | . 1 1 . . . Derelict Logs Recovered 1 | . . 1 . . . Drone Launches . | . . . . . . Drone Recoveries . | . . . . . . Exploration | -11 -10 -10 -9 -9 -9 ------------- Run | Yrd Mat Min Mat Min Exi Turns Passed 1787 | 4 533 256 492 247 255 Spaces Moved 1270 | 4 275 254 327 206 204 Core 4 | . 2 . . . 2 Treads 179 | . 179 . . . . Legs 80 | 4 76 . . . . Wheels 1007 | . 18 254 327 206 202 Hover . | . . . . . . Flight . | . . . . . . Fastest Speed 80 | 120 80 80 80 90 95 Average Speed 104 | 120 144 80 88 93 118 Slowest Speed 1700 | 120 250 80 95 95 1700 Overloaded Moves . | . . . . . . Propulsion Burnouts . | . . . . . . Robots Hopped . | . . . . . . Cave-ins Triggered . | . . . . . . Exploration Rate (%) 40 | 2 58 50 42 50 41 Regions Visited 5 Branch Regions 3 Pre-discovered Areas 2 | . . 1 1 . . Known Exits Taken 2 | . 1 1 . . . Unknown Exits Taken 3 | 1 . . 1 1 . Scrap Searched 1 | . . 1 . . . Spaces Dug . | . . . . . . Terrain Destroyed 209 | . 94 56 37 . 22 Melee . | . . . . . . Projectile . | . . . . . . AOE 209 | . 94 56 37 . 22 Terrain Rammed . | . . . . . . Walls Destroyed . | . . . . . . Machines Disabled . | . . . . . . Actions | -11 -10 -10 -9 -9 -9 --------- Run | Yrd Mat Min Mat Min Exi Total 1495 | 3 349 275 412 237 219 Wait 21 | . 6 . . 15 . Move 1265 | 3 274 253 326 205 204 Hop . | . . . . . . Pick Up 20 | . 9 1 5 . 5 Fast Attach 7 | . 2 . 4 1 . Attach 9 | . 3 . 4 . 2 Detach 4 | . 2 . 2 . . Swap 21 | . 4 3 8 5 1 Drop 21 | . 7 2 8 2 2 Fire 124 | . 41 16 53 9 5 Melee . | . . . . . . Ram 2 | . . . 2 . . Kick . | . . . . . . Crush 1 | . 1 . . . . Escape Stasis . | . . . . . . Rewire . | . . . . . . Trap . | . . . . . . Miscellaneous . | . . . . . . Route ------- -11/Scrapyard -10/Materials (discovered 3 exits: *Mat x2 / *Min) -10/Mines -9/Materials (discovered 2 exits: [*Mat] / [*Min]) -9/Mines (discovered 2 exits: [*Mat] / *Exi) -9/Exiles History --------- Turn | Location | Event 1 | -11/Scrapyard | Discovered new exit (range 1) 5 | -11/Scrapyard | Entered Materials 71 | -10/Materials | Discovered new exit (range 16) 174 | -10/Materials | Destroyed 8 combat bots 264 | -10/Materials | Discovered new exit (range 16) 328 | -10/Materials | Build established: Mutant 417 | -10/Materials | Discovered new exit (range 8) 442 | -10/Materials | Central database locked down 460 | -10/Materials | Identified exit to Materials 537 | -10/Materials | Identified exit to Mines 538 | -10/Materials | Entered Mines 538 | -10/Mines | Discovered exit to Materials (range 12) 635 | -10/Mines | Learned location of Mines (-8) 759 | -10/Mines | Core integrity fell below 50% 794 | -10/Mines | Entered Materials 794 | -9/Materials | Evolved 2 slots: Weapon x2 1113 | -9/Materials | Discovered new exit (range 9) 1274 | -9/Materials | Discovered new exit (range 10) 1286 | -9/Materials | Entered Mines 1297 | -9/Mines | Found a damaged Exp. Sensor Array with a note attached 1299 | -9/Mines | Found Prototype Device 1299 | -9/Mines | Identified Exp. Sensor Array 1307 | -9/Mines | Met a Derelict bent on vengeance 1326 | -9/Mines | Received a Mining Laser from a helpful Derelict 1502 | -9/Mines | Discovered new exit (range 6) 1513 | -9/Mines | Deemed a non-threat by the Exiles lab entrance 1514 | -9/Mines | Discovered new exit (range 5) 1533 | -9/Mines | Entered Exiles 1533 | -9/Exiles | Accompanied by 1 ally 1556 | -9/Exiles | Met 8R-AWN 1572 | -9/Exiles | Met EX-HEX 1600 | -9/Exiles | Met EX-BIN 1610 | -9/Exiles | Aligned with FarCom system 1611 | -9/Exiles | Given EX-Vault access code 1636 | -9/Exiles | Opened EX-Vault 1650 | -9/Exiles | Found AWS/Autocannon 1654 | -9/Exiles | Found Deploy-a-Sentry 1658 | -9/Exiles | Found Deploy-a-Sentry 1660 | -9/Exiles | Found Field Lobotomy Kit 1662 | -9/Exiles | Found Deploy-a-Sentry 1667 | -9/Exiles | Build established: Tank 1690 | -9/Exiles | Warned to stay clear of 0b10 Research branches 1758 | -9/Exiles | Attacked by the Exiles 1775 | -9/Exiles | Core integrity fell below 50% 1777 | -9/Exiles | DAS Turret deployed 1782 | -9/Exiles | Core integrity fell below 20% 1787 | -9/Exiles | DAS Turret deployed 1788 | -9/Exiles | Destroyed by 8R-AWN with 8R-AWN's Boregun Last Messages --------------- 01782_ Destroyed Asb. Hover Unit. 01782_ as-80548 destroyed. 01783_ Penetrated by HV Slug. 01783_ HV Slug penetrates Wall. 01783_ HV Slug penetrates Machine. 01783_ HV Slug penetrates Wall. 01784_ Wall collapses. 01784_ as-71672 destroyed. 01785_ Dropped Deploy-a-Sentry. 01785_ HV Slug penetrates Machine. 01785_ HV Slug penetrates Wall. 01785_ Penetrated by HV Slug. 01785_ HV Slug penetrates Earth. 01786_ Destroyed Prototype Device. 01786_ 8R-AWN knocked back. 01787_ DAS Turret deployed. 01788_ The unstable cave ceiling collapses. 01788_ Destroyed Asb. Hover Unit. 01788_ HV Slug penetrates Wall. 01788_ Penetrated by HV Slug. Map ----- +----------------------------------------------------+ | ?????????????????????????????????????????????????? | | ?????????????????????????????????????????????????? | | ?????????????????????????????????????????????????? | | #????????????????????????????????????????????????? | | "????????????????????????????????????????????????? | | #????????????????????????????????????????????????? | | "????????????????????????????????????????????????? | | ?????????????????????????????????????????????????? | | ?????????????????????????????????????????????????? | | ?????????????????????????????????????????????????? | | ?????????????????????????????????????????????????? | | ?????????????????????????????????????????????????? | | ?????????????????????????????????????????????????? | | ######???????????????????????????????????? ??????? | | """""##??????????????????????????????????? ???? | | " """"##????????###??????????????????????# #???? | | " #????????# ####?????????????????# ##??? | | """#????????# ###??????????????# #??? | | " "#????????# # #??????????????# #??? | | " "##???????## g #?????????????## ???? | | ""###??????# #????????????## #????? | | """#??????# #????????????# #????? | | "#????### % ###????????### #?????? | | ##???# %] % ########## #?????? | | ##### t #""""## #??????? | | ##% t @ * ##?????? | | a #; * #?????? | | a ##;# ##????? | | " ##;" ";### ###??? | | % #"""###;##;##; ##### * ###? | | % ######?# # ##?# #???##### ## | | ##??????# ##????##???????### # | | ##???????# ?????????????????### # | | "" ""#????????# ???????????????????### # | | #" "##?????????#????????????????????#" # | | ##"""""""##???????????????????????????????#### | | ?#########???????????????????????????????????# | | ?????????????????????????????????????????????## | | ??????????????????????????????????????????????### | | ????????????????????????????????????????????????# | | ????????????????????????????????????????????????## | | ?????????????????????????????????????????????????# | | ?????????????????????????????????????????????????? | | ?????????????????????????????????????????????????? | | ?????????????????????????????????????????????????? | | ?????????????????????????????????????????????????? | | ?????????????????????????????????????????????????? | | ?????????????????????????????????????????????????? | | ?????????????????????????????????????????????????? | | ?????????????????????????????????????????????????? | +----------------------------------------------------+ Best States ------------- Heat Dissipation 28 Energy Generation 10 Energy Capacity 250 Matter Stores 300 Matter Capacity 300 Sight Range 16 Terrain Scan Density 10 Armor Coverage 150 Evasion (%) 55 Recoil Reduction 2 Item Schematics ----------------- None Robot Schematics ------------------ None Fabricated ------------ Nothing Alien Tech Used ----------------- None Achievements -------------- None Challenges ------------ None Game ------ Seed MasterFireFlakker Manual? 0 Play Time 00:12:50 Cumulative 960.0 hours Start 2024.10.08 @ 10:54:41 End 2024.10.08 @ 11:08:27 Sessions 1 Manual Loads 0 Difficulty Rogue Special Mode None Game No. 1173 Rogue 893 Adventurer 124 Explorer 156 Win Type - Total 41 Types 28/0/8/3/1/0/0/1/0 Lore% 85 Gallery% 90 Achievement% 78 Wizard Run 0 Options --------- Layout 0 ASCII 0 Keyboard 1 Movement Numpad Keybinds 0 Fullscreen 2 Font 18/X11 Map View 76x50 Zoom Use 0% Tactical HUD 1 Map Filters NONE Filters NONE Steam 1 RUN: 639b9726-a29c-4bad-beeb-ca82c08efdbf